fUSD/lending_fUSD_20240214
["ID","MTS","AMOUNT","RATE_DAILY","PERIOD"]
[313981801,1707905446021,-6470.92,0.0003288,2]
[313981802,1707905446030,-6470.92,0.0003288,2]
[313981803,1707905446039,-150.0,0.00032886,2]
[313981804,1707905446048,-772.04,0.00032897,2]
[313981805,1707905446057,-5000.0,0.000329,2]
[313981806,1707905446066,-161.37769079,0.000329,2]
[313981807,1707905446075,-2000.0,0.000329,2]
[313981808,1707905446084,-1009.16160507,0.000329,6]
[313981809,1707905446094,-2757.05286694,0.000329,2]
[313981810,1707905446103,-6028.05257845,0.000329,2]
[313981811,1707905446113,-150.0,0.00032901,2]
[313981812,1707905446122,-162.5,0.00032904,120]
[313981813,1707905446130,-150.0,0.00032926,2]
[313981814,1707905446139,-150.0,0.00032936,2]
[313981815,1707905446149,-150.0,0.00032965,2]
[313981816,1707905446158,-1000.0,0.00032977,2]
[313981817,1707905446167,-151.0,0.0003298,2]
[313981818,1707905446177,-150.0,0.00032981,2]
[313981819,1707905446186,-150.0,0.00032987,2]
[313981820,1707905446195,-150.0,0.00032991,2]
[313981821,1707905446204,-50000.0,0.00033,3]
[313981822,1707905446213,-493.10203401,0.00033,4]
[313981823,1707905446222,-767.80874563,0.00033,4]
[313981824,1707905446231,-1450.0,0.00033,3]
[313981825,1707905446240,-749.65001992,0.00033,2]
[313981827,1707905446249,-183.0,0.00033,120]
[313981828,1707905446259,-1000.0,0.00033003,7]
[313981829,1707905446267,-150.0,0.00033006,2]
[313981830,1707905446276,-150.0,0.0003302,2]
[313981831,1707905446285,-150.0,0.00033021,2]
[313981832,1707905446294,-150.0,0.00033024,2]
[313981833,1707905446303,-150.0,0.00033034,2]
[313981834,1707905446312,-150.0,0.00033047,2]
[313981837,1707905446321,-1500.0,0.00033047,2]
[313981838,1707905446329,-150.0,0.00033049,2]
[313981839,1707905446338,-150.0,0.0003305,2]
[313981840,1707905446349,-150.0,0.00033058,2]
[313981841,1707905446358,-150.0,0.00033071,2]
[313981842,1707905446367,-150.0,0.00033077,2]
[313981843,1707905446376,-150.0,0.00033091,2]
[313981844,1707905446385,-150.0,0.000331,22]
[313981845,1707905446394,-150.0,0.00033106,2]
[313981846,1707905446403,-150.0,0.00033108,2]
[313981847,1707905446412,-150.0,0.00033109,2]
[313981848,1707905446421,-150.0,0.00033122,2]
[313981849,1707905446430,-27.25434474,0.00033124,2]
[313981850,1707905446442,-122.74565526,0.00033124,2]
[313981851,1707905446451,-150.0,0.00033125,2]
[313981852,1707905446460,-150.0,0.00033126,2]
[313981853,1707905446469,-150.0,0.00033142,2]
[313981854,1707905446478,-150.0,0.00033143,2]
[313981855,1707905446487,-150.0,0.00033158,2]
[313981856,1707905446496,-150.0,0.00033164,2]
[313981857,1707905446505,-150.0,0.00033164,2]
[313981858,1707905446514,-153.97684618,0.00033165,2]
[313981859,1707905446523,-150.0,0.00033168,2]
[313981860,1707905446532,-77.02584857,0.0003317,2]
[313981861,1707905446557,-72.97415143,0.0003317,2]
[313981862,1707905446566,-150.0,0.00033177,2]
[313981863,1707905446575,-411.76,0.00033178,2]
[313981864,1707905446584,-162.04,0.00033178,120]
[313981865,1707905446595,-674.7221054,0.000332,13]
[313981866,1707905446621,-633.234,0.000332,13]
[313981867,1707905446636,-1017.312,0.000332,13]
[313981868,1707905446648,-198.5806676,0.000332,13]
[313981869,1707905446658,-150.0,0.00033203,2]
[313981870,1707905446667,-150.0,0.00033209,2]
[313981871,1707905446676,-150.0,0.00033209,2]
[313981872,1707905446686,-150.0,0.00033216,2]
[313981873,1707905446695,-150.0,0.00033244,2]
[313981874,1707905446704,-64.38968868,0.00033251,2]
[313981875,1707905446716,-85.61031132,0.00033251,2]
[313981876,1707905446726,-150.0,0.00033263,2]
[313981877,1707905446735,-255.82818645,0.00033272,2]
[313981878,1707905446745,-150.0,0.00033276,2]
[313981879,1707905446755,-1500.0,0.00033281,2]
[313981880,1707905446765,-150.0,0.00033282,2]
[313981881,1707905446776,-150.0,0.00033292,2]
[313981882,1707905446787,-150.0,0.00033302,2]
[313981883,1707905446796,-150.0,0.00033315,2]
[313981884,1707905446805,-3000.0,0.0003336,2]
[313981885,1707905446815,-12808.39570681,0.0003337,2]
[313981886,1707905446828,-823.08195931,0.0003337,2]
[313981887,1707905446839,-1680.06586898,0.0003337,2]
[313981898,1707905447802,-1166.97470664,0.00022998,2]
[313981899,1707905447852,-201.21620402,0.000299,2]
[313981900,1707905447863,-150.0,0.00031,7]
[313981901,1707905447873,-26474.29727605,0.0003337,2]
[313981902,1707905447886,-162.571006,0.0003337,7]
[313981903,1707905447896,-151.670536,0.0003337,7]
[313981904,1707905447907,-153.111574,0.0003337,7]
[313981905,1707905447918,-151.0,0.0003337,7]
[313981906,1707905447929,-268.83837,0.0003337,7]
[313981907,1707905447938,-151.0,0.0003337,5]
[313981908,1707905447948,-156.629608,0.0003337,7]
[313981909,1707905447958,-151.0,0.0003337,7]
[313981910,1707905448128,-150.0,0.00033382,2]
[313981911,1707905448137,-150.0,0.00033386,2]
[313981912,1707905448147,-150.0,0.00033396,2]
[313981913,1707905448156,-150.0,0.00033404,2]
[313981914,1707905448166,-150.0,0.00033405,2]
[313981915,1707905448175,-150.0,0.00033409,2]
[313981916,1707905448185,-150.0,0.00033412,2]
[313981917,1707905448194,-150.0,0.00033416,2]
[313981918,1707905448204,-1500.0,0.00033429,2]
[313981919,1707905448214,-200.0,0.00033429,10]
[313981920,1707905448223,-150.0,0.0003343,2]
[313981921,1707905448233,-150.0,0.00033441,2]
[313981922,1707905448243,-150.0,0.00033451,2]
[313981923,1707905448253,-150.0,0.00033468,2]
[313981924,1707905448264,-150.0,0.00033479,2]
[313981925,1707905448273,-150.0,0.00033479,2]
[313981926,1707905448283,-150.0,0.00033483,2]
[313981927,1707905448293,-150.0,0.00033488,2]
[313981928,1707905448303,-150.0,0.00033492,2]
[313981929,1707905448313,-151.0,0.000335,7]
[313981930,1707905448323,-408.401703,0.000335,7]
[313981931,1707905448333,-408.401703,0.000335,7]
[313981932,1707905448343,-934.12,0.000335,2]
[313981933,1707905448359,-934.12,0.000335,2]
[313981934,1707905448370,-934.12,0.000335,2]
[313981935,1707905448380,-934.12,0.000335,2]
[313981936,1707905448390,-934.12,0.000335,2]
[313981937,1707905448401,-934.12,0.000335,2]
[313981938,1707905448410,-934.12,0.000335,2]
[313981939,1707905448419,-934.12,0.000335,2]
[313981940,1707905448429,-934.12,0.000335,2]
[313981941,1707905448439,-934.12,0.000335,2]
[313981942,1707905448449,-934.12,0.000335,2]
[313981943,1707905448458,-934.12,0.000335,2]
[313981944,1707905448468,-934.12,0.000335,2]
[313981945,1707905448478,-934.12,0.000335,2]
[313981946,1707905448488,-934.12,0.000335,2]
[313981947,1707905448498,-934.12,0.000335,2]
[313981948,1707905448508,-934.12,0.000335,2]
[313981949,1707905448517,-934.12,0.000335,2]
[313981950,1707905448526,-934.12,0.000335,2]
[313981951,1707905448536,-934.12,0.000335,2]
[313981952,1707905448545,-150.0,0.00033503,2]
[313981953,1707905448555,-150.0,0.00033505,2]
[313981954,1707905448568,-150.0,0.00033507,2]
[313981955,1707905448577,-150.0,0.00033511,2]
[313981956,1707905448587,-150.0,0.00033521,2]
[313981957,1707905448600,-150.0,0.00033522,2]
[313981958,1707905448610,-150.0,0.00033527,2]
[313981959,1707905448620,-150.0,0.0003353,2]
[313981960,1707905448629,-150.0,0.00033545,2]
[313981961,1707905448639,-300.0,0.00033549,2]
[313981962,1707905448649,-150.0,0.00033551,2]
[313981963,1707905448658,-150.0,0.00033553,2]
[313981964,1707905448668,-150.0,0.00033556,2]
[313981965,1707905448677,-150.0,0.00033557,2]
[313981966,1707905448688,-157.67,0.00033562,2]
[313981967,1707905448697,-1500.0,0.00033584,2]
[313981968,1707905448706,-150.0,0.00033586,2]
[313981969,1707905448716,-150.0,0.00033596,2]
[313981970,1707905448725,-150.0,0.00033599,2]
[313981971,1707905448735,-159.75249794,0.00033599,2]
[313981972,1707905448744,-150.0,0.000336,22]
[313981973,1707905448754,-150.0,0.00033604,2]
[313981974,1707905448763,-150.0,0.00033611,2]
[313981975,1707905448772,-150.0,0.00033612,2]
[313981976,1707905448783,-150.0,0.00033622,2]
[313981977,1707905448792,-150.0,0.00033626,2]
[313981978,1707905448801,-150.0,0.0003363,2]
[313981979,1707905448810,-1500.0,0.00033631,2]
[313981980,1707905448820,-307.72,0.00033636,2]
[313981981,1707905448829,-150.0,0.00033637,2]
[313981982,1707905448838,-150.0,0.00033649,2]
[313981983,1707905448848,-150.0,0.0003365,2]
[313981984,1707905448857,-150.0,0.00033658,2]
[313981985,1707905448867,-150.0,0.0003366,2]
[313981986,1707905448876,-150.0,0.00033667,2]
[313981987,1707905448886,-400.0,0.0003367,2]
[313981988,1707905448895,-1839.36,0.00033681,5]
[313981989,1707905448907,-4359.710446,0.00033696,2]
[313981990,1707905448918,-1442.80036,0.00033696,2]
[313981991,1707905448927,-462.5925822,0.00033696,2]
[313981992,1707905448937,-481.368705,0.00033696,2]
[313981993,1707905448946,-873.90820408,0.00033699,2]
[313981994,1707905448957,-5648.82696983,0.000337,2]
[313981995,1707905448966,-4814.21526873,0.000337,4]
[313981996,1707905448977,-1060.49687356,0.000337,4]
[313981997,1707905448988,-2000.0,0.000337,2]
[313981998,1707905448997,-200.0,0.000337,2]
[313981999,1707905449007,-301.0,0.000337,2]
[313982000,1707905449016,-200.0,0.000337,7]
[313982001,1707905449026,-238.145774,0.000337,2]
[313982002,1707905449035,-238.145775,0.000337,2]
[313982003,1707905449044,-238.145774,0.000337,2]
[313982004,1707905449054,-1988.471398,0.000337,2]
[313982005,1707905449063,-1988.471398,0.000337,2]
[313982006,1707905449072,-1988.471398,0.000337,2]
[313982007,1707905449081,-151.0,0.000337,7]
[313982008,1707905449090,-151.0,0.000337,7]
[313982009,1707905449101,-151.0,0.000337,7]
[313982010,1707905449110,-151.0,0.000337,7]
[313982011,1707905449119,-154.817417,0.000337,7]
[313982012,1707905449128,-151.0,0.000337,7]
[313982013,1707905449137,-151.0,0.000337,7]
[313982014,1707905449146,-155.047548,0.000337,7]
[313982015,1707905449155,-151.0,0.000337,7]
[313982016,1707905449164,-1500.0,0.000337,13]
[313982017,1707905449174,-150.0,0.000337,7]
[313982018,1707905449183,-1583.7612925,0.00033719,2]
[313982019,1707905449192,-3000.0,0.0003373,2]
[313982020,1707905449202,-150.0,0.00033742,2]
[313982021,1707905449211,-208.0,0.00033762,19]
[313982022,1707905449220,-2780.93084689,0.000338,6]
[313982023,1707905449229,-2972.28045998,0.0003389,21]
[313982024,1707905449238,-151.19629302,0.000339,2]
[313982025,1707905449247,-151.19629262,0.000339,2]
[313982026,1707905449257,-151.19629262,0.000339,2]
[313982027,1707905449266,-151.19629262,0.000339,2]
[313982028,1707905449275,-151.19629262,0.000339,2]
[313982029,1707905449285,-151.19629262,0.000339,2]
[313982030,1707905449294,-151.19629262,0.000339,2]
[313982031,1707905449303,-151.19629262,0.000339,2]
[313982032,1707905449312,-151.19629262,0.000339,2]
[313982033,1707905449322,-151.19629262,0.000339,2]
[313982034,1707905449331,-151.19629262,0.000339,2]
[313982035,1707905449340,-151.19629262,0.000339,2]
[313982036,1707905449350,-151.19629262,0.000339,2]
[313982037,1707905449360,-151.19629262,0.000339,2]
[313982038,1707905449370,-151.19629262,0.000339,2]
[313982039,1707905449379,-151.19629262,0.000339,2]
[313982040,1707905449388,-151.19629262,0.000339,2]
[313982041,1707905449397,-151.19629262,0.000339,2]
[313982042,1707905449406,-151.19629262,0.000339,2]
[313982043,1707905449415,-151.19629262,0.000339,2]
[313982044,1707905449424,-151.19629262,0.000339,2]
[313982045,1707905449433,-151.19629262,0.000339,2]
[313982046,1707905449443,-151.19629262,0.000339,2]
[313982047,1707905449452,-37.16294289,0.000339,2]
[313982048,1707905449467,-114.03334973,0.000339,2]
[313982049,1707905449476,-151.19629262,0.000339,2]
[313982050,1707905449485,-151.19629262,0.000339,2]
[313982051,1707905449495,-151.19629262,0.000339,2]
[313982052,1707905449504,-151.19629262,0.000339,2]
[313982053,1707905449514,-151.19629262,0.000339,2]
[313982054,1707905449523,-151.19629262,0.000339,2]
[313982055,1707905449532,-151.19629262,0.000339,2]
[313982056,1707905449542,-151.19629262,0.000339,2]
[313982057,1707905449551,-151.19629262,0.000339,2]
[313982058,1707905449560,-151.19629262,0.000339,2]
[313982059,1707905449570,-151.19629262,0.000339,2]
[313982060,1707905449579,-151.19629262,0.000339,2]
[313982061,1707905449588,-151.19629262,0.000339,2]
[313982062,1707905449599,-151.19629262,0.000339,2]
[313982063,1707905449608,-151.19629262,0.000339,2]
[313982064,1707905449618,-151.19629262,0.000339,2]
[313982065,1707905449627,-151.19629262,0.000339,2]
[313982066,1707905449636,-151.19629262,0.000339,2]
[313982067,1707905449646,-151.19629262,0.000339,2]
[313982068,1707905449655,-151.19629262,0.000339,2]
[313982069,1707905449665,-191.63858603,0.00033998,4]
[313982070,1707905449674,-408.72846181,0.00033998,4]
[313982071,1707905449683,-338.76210274,0.00033998,10]
[313982072,1707905449693,-366.35045093,0.00033998,4]
[313982073,1707905449701,-168.36808501,0.00033998,4]
[313982074,1707905449711,-938.77467134,0.00033998,2]
[313982075,1707905449720,-733.94634,0.00033998,4]
[313982076,1707905449729,-530.80620326,0.00033998,4]
[313982077,1707905449739,-1910.62108972,0.00033998,4]
[313982078,1707905449748,-1348.51543376,0.00033999,3]
[313982079,1707905449757,-50000.0,0.00034,4]
[313982080,1707905449767,-2169.94036913,0.00034,4]
[313982081,1707905449776,-200.0,0.00034,7]
[313982082,1707905449785,-267.734117,0.00034,35]
[313982083,1707905449794,-22542.78930998,0.00034,7]
[313982084,1707905449803,-151.0,0.00034,7]
[313982085,1707905449812,-151.0,0.00034,7]
[313982086,1707905449821,-151.0,0.00034,7]
[313982087,1707905449831,-344.646284,0.00034,7]
[313982088,1707905449840,-344.646284,0.00034,7]
[313982089,1707905449851,-835.046215,0.00034,7]
[313982090,1707905449861,-159.018569,0.00034,7]
[313982091,1707905449870,-835.046215,0.00034,7]
[313982092,1707905449880,-151.0,0.00034,7]
[313982093,1707905449889,-151.0,0.00034,2]
[313982094,1707905449899,-160.329293,0.00034,7]
[313982095,1707905449910,-236.900822,0.00034,7]
[313982096,1707905449920,-236.900822,0.00034,7]
[313982097,1707905449929,-1893.248406,0.00034,7]
[313982098,1707905449939,-220.645436,0.00034,7]
[313982099,1707905449950,-1893.248406,0.00034,7]
[313982100,1707905449961,-220.645436,0.00034,7]
[313982101,1707905449969,-267.19689819,0.00034037,2]
[313982102,1707905449978,-200.0,0.00034037,2]
[313982103,1707905449989,-151.19629262,0.00034047,2]
[313982104,1707905449998,-150.0,0.000341,23]
[313982105,1707905450008,-153.88,0.000341,2]
[313982106,1707905450018,-153.88,0.000341,2]
[313982107,1707905450028,-153.88,0.000341,2]
[313982108,1707905450037,-153.88,0.000341,2]
[313982109,1707905450046,-153.88,0.000341,2]
[313982110,1707905450055,-153.88,0.000341,2]
[313982111,1707905450065,-153.88,0.000341,2]
[313982112,1707905450074,-153.88,0.000341,2]
[313982113,1707905450084,-150.0,0.0003419,4]
[313982114,1707905450094,-200.0,0.000342,7]
[313982115,1707905450105,-157.67,0.00034247,2]
[313982116,1707905450115,-10000.0,0.00034252,2]
[313982117,1707905450124,-151.19629262,0.000343,2]
[313982118,1707905450134,-3000.0,0.0003436,2]
[313982119,1707905450143,-1000.0,0.00034397,7]
[313982120,1707905450153,-1000.0,0.00034397,7]
[313982121,1707905450163,-1000.0,0.00034397,7]
[313982122,1707905450172,-2516.95,0.000344,30]
[313982123,1707905450182,-375.0,0.000344,2]
[313982124,1707905450191,-16000.0,0.000344,3]
[313982125,1707905450201,-1000.0,0.00034411,7]
[313982126,1707905450210,-1000.0,0.00034411,7]
[313982127,1707905450222,-1000.0,0.00034411,7]
[313982128,1707905450231,-1000.0,0.00034411,7]
[313982129,1707905450241,-1000.0,0.00034411,7]
[313982130,1707905450251,-1000.0,0.00034411,7]
[313982131,1707905450260,-1000.0,0.00034411,7]
[313982132,1707905450269,-1000.0,0.00034411,7]
[313982133,1707905450279,-1000.0,0.00034411,7]
[313982134,1707905450289,-499.0,0.00034412,2]
[313982135,1707905450298,-59370.79139595,0.00034467,2]
[313982136,1707905450307,-2044.11131222,0.00034467,2]
[313982137,1707905450316,-876.447533,0.000345,2]
[313982138,1707905450326,-150.0,0.00034512,2]
[313982139,1707905450335,-55374.13202866,0.00034513,3]
[313982140,1707905450349,-20518.24749346,0.00034513,3]
[313982141,1707905450361,-5539.74377319,0.00034513,3]
[313982142,1707905450378,-312.50997917,0.00034513,3]
[313982143,1707905450387,-241.03635083,0.0003452,2]
[313982144,1707905450545,-917.26116918,0.0003452,2]
[313982145,1707905451351,-2861.5891611,0.0003452,2]
[313982146,1707905451407,-822.70028189,0.0003452,2]
[313982147,1707905451416,-1495.36611531,0.0003452,2]
[313982148,1707905451427,-17190.40621367,0.0003452,2]
[313982149,1707905451583,-419.59727266,0.0003452,2]
[313982150,1707905451595,-1741.45315117,0.0003452,2]
[313982151,1707905451608,-10993.2155,0.0003452,2]
[313982152,1707905451620,-3038.81439619,0.0003452,2]
[313982153,1707905451629,-4478.83,0.00034521,2]
[313982154,1707905451639,-150.0,0.00034548,10]
[313982155,1707905451648,-151.19629262,0.00034553,2]
[313982156,1707905451657,-382.36,0.00034587,2]
[313982157,1707905451666,-150.0,0.000346,23]
[313982158,1707905451676,-150.0,0.00034607,2]
[313982159,1707905451685,-200.0,0.000347,8]
[313982160,1707905451695,-934.12,0.000347,2]
[313982161,1707905451704,-688.87931119,0.000347,2]
[313982162,1707905452372,524.3450886,0.00020053,7]
[313982163,1707905614177,209.0,0.00021101,2]
[313982164,1707905874136,20434.55252657,0.00020996,2]
[313982165,1707905883126,1111.78752035,0.00021101,2]
[313982166,1707905884272,206.0,0.00021101,2]
[313982168,1707906046892,155.0,0.00021101,2]
[313982171,1707906157285,144.6677148,0.00025031,120]
[313982172,1707906157313,13.5122852,0.00025031,120]
[313982173,1707906332104,-498.26271088,0.00022497,2]
[313982174,1707906332124,-529.41016031,0.00022498,2]
[313982175,1707906332145,-1080.0,0.000225,2]
[313982176,1707906332165,-1863.27656803,0.000225,2]
[313982177,1707906332193,-153.86516529,0.000227,2]
[313982178,1707906332213,-379.0,0.00022805,2]
[313982179,1707906332232,-2173.9682,0.00022898,2]
[313982180,1707906332252,-234.53774303,0.00022995,2]
[313982181,1707906332272,-150.0,0.00022995,2]
[313982182,1707906332291,-176.00850026,0.00022995,2]
[313982183,1707906332311,-704.41082806,0.00022996,2]
[313982184,1707906332330,-288.10515116,0.00022996,2]
[313982185,1707906332348,-261.82623265,0.00022996,2]
[313982186,1707906332367,-704.21,0.00022996,2]
[313982187,1707906332387,-534.31790056,0.00022996,2]
[313982188,1707906332406,-295.95671724,0.00022996,2]
[313982189,1707906332424,-158.79636252,0.00022996,2]
[313982190,1707906332443,-1262.54567766,0.00022997,2]
[313982191,1707906332462,-19683.38188701,0.00022997,2]
[313982192,1707906418089,-176.00850026,0.00022898,2]
[313982193,1707906425100,-323.99149974,0.00022898,2]
[313982194,1707906425121,-11058.1388,0.00022898,2]
[313982195,1707906425142,-3940.6771,0.00022898,2]
[313982196,1707906425164,-466.67065833,0.00022996,2]
[313982197,1707906425187,-16302.03573365,0.00022997,2]
[313982198,1707906444503,-12417.23216089,0.00022997,2]
[313982199,1707906444522,-13842.69137061,0.00022998,2]
[313982200,1707906447100,-137239.06910624,0.00022998,2]
[313982201,1707906448075,-32312.4205328,0.00022998,2]
[313982202,1707906448094,-276.6,0.00023,2]
[313982203,1707906448114,-277.48,0.00023142,2]
[313982204,1707906448135,-209.0,0.00023423,2]
[313982205,1707906448156,-19710.0,0.000235,2]
[313982206,1707906448176,-379.0,0.00024449,2]
[313982207,1707906448196,-1037.46115296,0.0002453,2]
[313982208,1707906448218,-1000.04008796,0.0002453,2]
[313982209,1707906448241,-3235.08,0.0002453,2]
[313982210,1707906448264,-3337.43,0.0002453,2]
[313982211,1707906448286,-203.63910297,0.00024597,2]
[313982212,1707906448305,-517.91218452,0.00024597,2]
[313982213,1707906448325,-309.42,0.00024597,2]
[313982214,1707906448348,-688.54,0.00024597,2]
[313982215,1707906448369,-387.90268592,0.00024598,2]
[313982216,1707906448392,-19252.21979484,0.000246,2]
[313982217,1707906448607,-721.34,0.00024653,2]
[313982218,1707906448626,-504.58080257,0.0002469,2]
[313982219,1707906448645,-500.0,0.00024738,2]
[313982220,1707906448667,-19608.56241881,0.0002479,2]
[313982221,1707906448687,-19608.56241878,0.0002479,2]
[313982222,1707906448707,-3926.1097111,0.00024799,2]
[313982223,1707906448734,-3926.10971102,0.00024799,2]
[313982224,1707906448754,-511.37,0.00024869,2]
[313982225,1707906448775,-2062.65,0.00025,2]
[313982226,1707906448793,-1000.0,0.00025,3]
[313982227,1707906448812,-1250.0,0.00025,3]
[313982228,1707906448830,-250.0,0.00025027,2]
[313982229,1707906448849,-200.0,0.00025031,2]
[313982230,1707906448870,-512.26744547,0.00025031,2]
[313982231,1707906448889,-2609.07512197,0.00025031,2]
[313982232,1707906448910,-2000.0,0.00025047,2]
[313982233,1707906448931,-171.78,0.00025114,2]
[313982234,1707906448953,-163.1,0.00025154,2]
[313982235,1707906448974,-11666.58816295,0.00025154,2]
[313982236,1707906450090,-12233.41183705,0.00025154,2]
[313982237,1707906450110,-250.0,0.00025154,2]
[313982238,1707906450129,-200.0,0.00025154,2]
[313982239,1707906450148,-250.0,0.00025154,2]
[313982240,1707906450168,-191.2,0.00025175,2]
[313982241,1707906450188,-157.23,0.00025343,2]
[313982242,1707906450209,-277.48,0.00025406,2]
[313982243,1707906450230,-1314.53,0.00025545,2]
[313982244,1707906450251,-157.23,0.00025783,2]
[313982245,1707906450270,-379.0,0.00026093,2]
[313982246,1707906450291,-157.23,0.00026223,2]
[313982247,1707906450316,-721.34,0.00026296,2]
[313982248,1707906450340,-1253.0,0.0002637,2]
[313982249,1707906450366,-2146.479,0.0002637,2]
[313982250,1707906450385,-453.584,0.0002637,2]
[313982251,1707906450404,-1482.20994162,0.0002637,2]
[313982252,1707906451082,-3405.45705838,0.0002637,2]
[313982253,1707906451101,-979.682,0.0002637,2]
[313982254,1707906451120,-1175.13323957,0.0002637,2]
[313982255,1707906452078,-3150.86676043,0.0002637,2]
[313982256,1707906452249,-1344.43010194,0.0002637,2]
[313982286,1707906631388,-2422.0556,0.00022898,2]
[313982288,1707906631398,-1409.38556331,0.00023,2]
[313982290,1707906631407,-235.11,0.00023,2]
[313982292,1707906631416,-154.17873515,0.000249,2]
[313982293,1707906631425,-19252.21979484,0.00025153,2]
[313982294,1707906631434,-2657.56,0.00025154,2]
[313982295,1707906631443,-250.0,0.00025154,2]
[313982296,1707906631453,-1117.87689316,0.00025843,2]
[313982297,1707906631462,-512.26744547,0.0002637,2]
[313982298,1707906631470,-200.0,0.0002637,2]
[313982299,1707906631479,-7295.564,0.0002637,2]
[313982300,1707906631488,-4000.0,0.0002637,2]
[313982301,1707906631497,-150.0,0.00026408,2]
[313982302,1707906631507,-3926.10971102,0.00026678,2]
[313982303,1707906631516,-1300.0,0.00027,3]
[313982304,1707906631525,-368.26,0.00027238,2]
[313982305,1707906631534,-157.23,0.00027338,2]
[313982306,1707906631543,-153.58,0.0002734,2]
[313982307,1707906631552,-480.00478813,0.000274,2]
[313982308,1707906631562,-923.52,0.00027527,2]
[313982309,1707906631571,-217.37,0.00027619,2]
[313982310,1707906631580,-277.48,0.0002767,2]
[313982311,1707906631589,-379.0,0.00027737,2]
[313982312,1707906631598,-23900.0,0.00027868,2]
[313982313,1707906631607,-250.0,0.00027868,2]
[313982314,1707906631616,-721.34,0.0002794,2]
[313982315,1707906631625,-209.0,0.00027995,9]
[313982316,1707906631635,-969.27668517,0.00028,2]
[313982317,1707906631644,-12226.90247564,0.00028027,7]
[313982318,1707906631674,-2464.43535988,0.00028027,7]
[313982319,1707906631686,-10280.27,0.00028027,7]
[313982320,1707906631697,-2214.26891387,0.00028027,7]
[313982321,1707906631717,-350.0,0.00028027,7]
[313982322,1707906631728,-4987.90396448,0.00028027,7]
[313982329,1707906631791,-399.68617937,0.00028027,7]
[313982331,1707906631802,-11613.32759237,0.00028027,7]
[313982333,1707906631811,-161.85,0.00028234,2]
[313982335,1707906631820,-37775.15381703,0.00028518,7]
[313982339,1707906631848,-446.09013255,0.00028518,7]
[313982341,1707906631858,-456.81059646,0.00028518,7]
[313982362,1707906637411,-31790.21586895,0.00028518,7]
[313982363,1707906637421,-21751.24559885,0.00028518,7]
[313982364,1707906637431,-7078.81176378,0.00028518,7]
[313982365,1707906637440,-9421.82228177,0.00028518,7]
[313982366,1707906637450,-150.0,0.00028518,2]
[313982367,1707906637462,-3926.10971102,0.00028567,2]
[313982368,1707906637472,-161.85,0.00028601,2]
[313982369,1707906637482,-161.85,0.00028968,2]
[313982370,1707906637495,-3000.0,0.00029,2]
[313982371,1707906637506,-1350.0,0.00029,3]
[313982372,1707906637516,-161.85,0.00029335,2]
[313982373,1707906637525,-379.0,0.00029381,2]
[313982374,1707906637535,-228.49645632,0.000295,3]
[313982375,1707906637545,-721.34,0.00029584,2]
[313982376,1707906637554,-161.85,0.00029702,2]
[313982377,1707906637563,-1088.19634546,0.00029742,3]
[313982378,1707906637572,-1120.74112398,0.00029742,3]
[313982379,1707906637582,-885.07589426,0.00029742,3]
[313982380,1707906637591,-174.40047935,0.00029742,3]
[313982381,1707906637600,-159.13339403,0.00029742,3]